bitfinex/quotes_BTCUSD_20230907
["timestamp","ask_amount","ask_price","bid_price","bid_amount"]
[1694093124388,0.01211697,25697.0,25696.0,2.38577651]
[1694093124695,0.01211697,25697.0,25696.0,3.07505972]
[1694093124916,0.01211697,25697.0,25696.0,2.95435972]
[1694093125149,1.63733535,25702.0,25696.0,2.95435972]
[1694093125150,0.14005677,25702.0,25696.0,4.25743851]
[1694093125388,0.32680604,25703.0,25701.0,0.1207]
[1694093125634,0.14005677,25704.0,25702.0,3.77727051]
[1694093125903,0.14005677,25704.0,25703.0,0.1207]
[1694093126127,0.14005677,25705.0,25703.0,2.455057]
[1694093126345,0.14005677,25705.0,25704.0,0.1207]
[1694093126572,0.14005677,25705.0,25704.0,1.676878]
[1694093126783,0.14005677,25705.0,25704.0,0.898789]
[1694093127210,0.14005677,25706.0,25704.0,1.07885377]
[1694093128053,1.77252153,25707.0,25704.0,1.07885377]
[1694093128270,0.003,25705.0,25704.0,1.08085377]
[1694093129127,1.63246476,25707.0,25704.0,1.07885377]
[1694093129336,0.778029,25706.0,25704.0,0.30076477]
[1694093129970,0.780029,25706.0,25704.0,0.30276477]
[1694093130184,0.778029,25706.0,25704.0,0.30076477]
[1694093131124,0.781029,25706.0,25704.0,0.30276477]
[1694093131563,0.781029,25706.0,25704.0,0.1227]
[1694093132211,0.781029,25706.0,25704.0,0.1247]
[1694093132442,0.07002239,25705.0,25704.0,0.1247]
[1694093133928,0.07002239,25705.0,25704.0,0.1227]
[1694093134139,0.07002239,25705.0,25704.0,0.1247]
[1694093134350,0.07002239,25705.0,25704.0,0.1227]
[1694093134560,0.07002239,25705.0,25704.0,0.1207]
[1694093134781,0.08202239,25705.0,25704.0,0.1227]
[1694093135645,0.08502239,25705.0,25704.0,0.1247]
[1694093136090,0.07502239,25705.0,25704.0,0.1247]
[1694093136523,0.07502239,25705.0,25704.0,0.004]
[1694093140632,2.40919639,25705.0,25704.0,0.004]
[1694093144262,1.63113839,25705.0,25704.0,0.004]
[1694093145098,0.13101298,25704.0,25702.0,0.778148]
[1694093145304,0.90910298,25704.0,25702.0,0.778148]
[1694093145708,0.90910298,25704.0,25701.0,1.70880122]
[1694093146321,0.91410298,25704.0,25702.0,0.002]
[1694093146930,0.90910298,25704.0,25701.0,2.48695922]
[1694093148159,0.90910298,25704.0,25701.0,1.58809522]
[1694093148585,0.91410298,25704.0,25701.0,1.59009522]
[1694093150736,0.14617053,25703.0,25701.0,1.59009522]
[1694093152431,0.14617053,25703.0,25702.0,0.002]
[1694093152852,0.14617053,25703.0,25701.0,2.36826222]
[1694093153028,0.15017053,25703.0,25701.0,2.36726222]
[1694093153238,0.15517053,25703.0,25701.0,2.36826222]
[1694093153396,0.15117053,25703.0,25701.0,2.36726222]
[1694093153806,0.15517053,25703.0,25702.0,1.12304567]
[1694093154448,2.343357,25703.0,25702.0,0.001]
[1694093154658,2.459057,25703.0,25702.0,0.001]
[1694093154872,2.459057,25703.0,25702.0,0.002]
[1694093154873,2.464057,25703.0,25702.0,0.002]
[1694093155363,2.460057,25703.0,25702.0,0.001]
[1694093155782,2.464057,25703.0,25702.0,0.001]
[1694093155990,2.58748433,25703.0,25702.0,0.001]
[1694093156274,2.58348433,25703.0,25702.0,0.001]
[1694093156490,2.58748433,25703.0,25702.0,0.002]
[1694093159352,2.84244443,25703.0,25702.0,0.002]
[1694093159590,2.88244443,25703.0,25702.0,0.002]
[1694093160076,3.04634443,25703.0,25702.0,0.002]
[1694093166465,2.667957,25703.0,25702.0,0.002]
[1694093169714,2.76096819,25703.0,25702.0,0.002]
[1694093170194,2.76129096,25703.0,25702.0,0.002]
[1694093172324,2.90129191,25703.0,25702.0,0.002]
[1694093174002,2.80795795,25703.0,25702.0,0.002]
[1694093175263,3.19757087,25703.0,25702.0,0.002]
[1694093175897,3.3842388,25703.0,25702.0,0.002]
[1694093176771,3.3051213,25703.0,25702.0,0.002]
[1694093177806,3.45448364,25703.0,25702.0,0.002]
[1694093178627,3.06487072,25703.0,25702.0,0.002]
[1694093178836,3.29820564,25703.0,25702.0,0.002]
[1694093180107,3.11153771,25703.0,25702.0,0.002]
[1694093180996,2.84008587,25703.0,25702.0,0.002]
[1694093181208,2.85938316,25703.0,25702.0,0.002]
[1694093181692,2.71938587,25703.0,25702.0,0.002]
[1694093182550,2.95272079,25703.0,25702.0,0.002]
[1694093182894,2.76605426,25703.0,25702.0,0.002]
[1694093183757,0.19568154,25703.0,25702.0,0.07097557]
[1694093183959,0.19568154,25703.0,25702.0,1.74797357]
[1694093183960,0.14900244,25703.0,25702.0,1.74797357]
[1694093184389,0.14900244,25703.0,25702.0,0.96982457]
[1694093186042,0.14900244,25703.0,25702.0,0.19167557]
[1694093186455,0.92712144,25703.0,25702.0,0.19167557]
[1694093186675,1.89192198,25703.0,25702.0,0.1227]
[1694093187105,1.89192198,25703.0,25702.0,0.002]
[1694093187106,2.11257803,25703.0,25702.0,0.002]
[1694093187268,2.70401549,25703.0,25702.0,0.002]
[1694093187481,2.89071722,25703.0,25702.0,0.002]
[1694093188577,2.6573823,25703.0,25702.0,0.002]
[1694093189486,2.70401549,25703.0,25702.0,0.002]
[1694093190025,2.76489437,25703.0,25702.0,0.002]
[1694093190861,2.76495711,25703.0,25702.0,0.002]
[1694093191844,2.63763354,25703.0,25702.0,0.002]
[1694093192662,2.40423588,25703.0,25702.0,0.002]
[1694093194771,2.54412497,25703.0,25702.0,0.002]
[1694093195461,2.40423588,25703.0,25702.0,0.002]
[1694093195902,2.52622535,25703.0,25702.0,0.002]
[1694093197149,2.40423588,25703.0,25702.0,0.002]
[1694093199278,2.54401718,25703.0,25702.0,0.002]
[1694093199697,2.40423588,25703.0,25702.0,0.002]
[1694093207854,2.52573947,25703.0,25702.0,0.002]
[1694093210903,0.06987888,25703.0,25702.0,0.06421329]
[1694093211059,1.79877136,25703.0,25702.0,0.06421329]
[1694093215786,0.25669731,25703.0,25702.0,2.78721351]
[1694093216000,0.33592705,25703.0,25702.0,2.90791351]
[1694093216208,0.24250845,25703.0,25702.0,2.90791351]
[1694093216433,0.24249893,25703.0,25702.0,2.90791351]
[1694093216672,0.14910691,25703.0,25702.0,2.90791351]
[1694093220884,0.14910691,25703.0,25702.0,2.12976451]
[1694093221829,0.14910691,25703.0,25702.0,1.35161551]
[1694093226040,0.33592705,25703.0,25702.0,1.35161551]
[1694093227648,0.14910691,25703.0,25702.0,1.35161551]
[1694093235056,0.14910691,25703.0,25702.0,0.57346651]
[1694093235263,0.14910691,25703.0,25702.0,0.45276651]
[1694093238324,0.92722591,25703.0,25702.0,0.45276651]
[1694093240328,0.92722591,25703.0,25702.0,0.39055322]
[1694093244836,1.11404605,25703.0,25702.0,0.39055322]
[1694093245282,0.92722591,25703.0,25702.0,0.39055322]
[1694093248542,1.11404605,25703.0,25702.0,0.39055322]
[1694093252409,0.97393914,25703.0,25702.0,0.45401329]
[1694093253930,0.19582014,25703.0,25702.0,0.45401329]
[1694093256062,0.19582014,25703.0,25702.0,1.23216229]
[1694093256297,0.19582014,25703.0,25702.0,2.01031129]
[1694093256498,0.19582014,25703.0,25702.0,2.86870022]
[1694093256499,0.009,25703.0,25702.0,2.86870022]
[1694093256716,0.009,25703.0,25702.0,2.98870022]
[1694093257365,0.004,25703.0,25702.0,2.98770022]
[1694093258051,0.009,25703.0,25702.0,2.98870022]
[1694093258885,0.005,25703.0,25702.0,2.98770022]
[1694093259304,0.004,25703.0,25702.0,2.98670022]
[1694093259730,0.009,25703.0,25702.0,2.98670022]
[1694093260361,0.009,25703.0,25702.0,3.08064455]
[1694093260788,0.009,25703.0,25702.0,2.98670022]
[1694093275447,0.009,25703.0,25702.0,2.94670022]
[1694093275653,0.009,25703.0,25702.0,2.98670022]
[1694093281147,0.009,25703.0,25702.0,2.88670022]
[1694093283053,0.009,25703.0,25702.0,0.38855322]
[1694093283919,0.787119,25703.0,25702.0,0.38855322]
[1694093284759,0.009,25703.0,25702.0,0.38855322]
[1694093285235,0.787119,25703.0,25702.0,0.38855322]
[1694093286317,1.565238,25703.0,25700.0,0.1925]
[1694093286527,1.65867646,25703.0,25700.0,1.35925922]
[1694093287516,1.65867646,25703.0,25700.0,0.38855322]
[1694093287978,1.65367646,25703.0,25700.0,0.38855322]
[1694093288205,1.65867646,25703.0,25700.0,0.38855322]
[1694093288721,1.77937646,25703.0,25697.0,0.778287]
[1694093288953,1.77937646,25703.0,25697.0,1.16683622]
[1694093288954,0.13099788,25702.0,25697.0,1.16683622]
[1694093289197,0.778193,25701.0,25698.0,0.778256]
[1694093289438,0.778193,25701.0,25698.0,1.556519]
[1694093290823,0.778193,25701.0,25700.0,0.001]
[1694093291490,0.778193,25701.0,25698.0,1.559519]
[1694093291698,0.778193,25701.0,25698.0,1.560519]
[1694093292111,0.778193,25701.0,25700.0,0.003]
[1694093294037,0.778193,25701.0,25700.0,0.007]
[1694093294245,0.778193,25701.0,25700.0,0.004]
[1694093295523,0.778193,25701.0,25700.0,0.006]
[1694093297759,1.556386,25701.0,25700.0,0.006]
[1694093303764,2.334579,25701.0,25700.0,0.006]
[1694093318074,1.556386,25701.0,25700.0,0.006]
[1694093318289,0.87154746,25704.0,25700.0,1.56242]
[1694093318500,0.87154746,25704.0,25700.0,2.49605129]
[1694093318501,0.778109,25704.0,25700.0,2.49605129]
[1694093319109,0.778109,25704.0,25700.0,2.34063]
[1694093319110,0.87154746,25704.0,25700.0,2.34063]
[1694093319341,0.87154746,25704.0,25700.0,2.33663]
[1694093319721,0.88154746,25704.0,25700.0,2.33863]
[1694093320337,0.10343846,25704.0,25700.0,2.33863]
[1694093320544,0.10343846,25704.0,25700.0,2.72518322]
[1694093320947,0.11343846,25704.0,25700.0,2.72718322]
[1694093322582,0.25359615,25704.0,25700.0,2.72718322]
[1694093323680,0.09343846,25703.0,25700.0,2.72718322]
[1694093324847,0.09343846,25703.0,25700.0,2.72518322]
[1694093325267,0.10343846,25703.0,25700.0,2.72618322]
[1694093326720,0.10343846,25703.0,25700.0,2.72418322]
[1694093326930,0.11343846,25703.0,25700.0,2.72518322]
[1694093327528,0.25359615,25703.0,25700.0,2.72518322]
[1694093327932,0.09343846,25702.0,25700.0,2.72518322]
[1694093328558,0.00057778,25701.0,25700.0,2.72518322]
[1694093328766,0.00057778,25701.0,25700.0,2.72418322]
[1694093329752,0.00057778,25701.0,25700.0,1.94497322]
[1694093331638,0.00057778,25701.0,25700.0,1.94697322]
[1694093333306,2.33511478,25701.0,25700.0,0.002]
[1694093333519,1.65037424,25701.0,25700.0,0.002]
[1694093333948,1.79053193,25701.0,25700.0,0.002]
[1694093334164,1.65037424,25701.0,25700.0,0.002]
[1694093335274,1.65037424,25701.0,25700.0,0.006]
[1694093335742,0.87219524,25701.0,25700.0,0.006]
[1694093340126,0.09401624,25701.0,25700.0,0.006]
[1694093340365,0.00057778,25701.0,25700.0,2.84988322]
[1694093341600,0.09343846,25703.0,25700.0,2.84988322]
[1694093342553,0.09343846,25703.0,25701.0,0.38855322]
[1694093342554,0.00058084,25702.0,25701.0,0.38855322]
[1694093342759,0.00058084,25702.0,25701.0,1.94488322]
[1694093344257,0.00458084,25702.0,25701.0,1.94488322]
[1694093345366,0.00458084,25702.0,25701.0,2.84376222]
[1694093345367,0.01058084,25702.0,25701.0,2.84376222]
[1694093345598,0.01058084,25702.0,25701.0,2.86676222]
[1694093349740,0.01058084,25702.0,25701.0,0.38855322]
[1694093355232,0.01058084,25702.0,25699.0,0.778218]
[1694093355233,1.6603173,25702.0,25699.0,0.778218]
[1694093355365,1.6603173,25702.0,25699.0,1.16677122]
[1694093355806,1.6603173,25702.0,25699.0,1.94501122]
[1694093356589,1.6503173,25702.0,25699.0,1.94501122]
[1694093356887,1.6603173,25702.0,25699.0,1.94501122]
[1694093358582,0.88158746,25702.0,25699.0,2.72325122]
[1694093366645,0.10343846,25702.0,25699.0,2.72325122]
[1694093374738,0.24359615,25702.0,25699.0,2.72325122]
[1694093375236,0.10343846,25702.0,25699.0,2.72325122]
[1694093375873,0.24359615,25702.0,25699.0,2.72325122]
[1694093377064,0.10343846,25702.0,25699.0,2.72325122]
[1694093379653,0.88159046,25702.0,25699.0,2.72325122]
[1694093381434,1.02174815,25702.0,25699.0,2.72325122]
[1694093382229,1.02175522,25702.0,25699.0,2.72325122]
[1694093383626,0.24360322,25702.0,25699.0,2.72325122]
[1694093384275,0.10344129,25702.0,25699.0,2.72325122]
[1694093391793,0.24360322,25702.0,25699.0,2.72325122]
[1694093392056,0.10344129,25702.0,25699.0,2.72325122]
[1694093392776,0.24360322,25702.0,25699.0,2.72325122]
[1694093393503,0.01,25702.0,25701.0,2.334537]
[1694093393707,0.01,25702.0,25701.0,2.72309022]
[1694093394767,0.23360322,25703.0,25701.0,2.72309022]
[1694093394979,0.01,25702.0,25701.0,2.334537]
[1694093395598,0.006,25702.0,25701.0,2.334537]
[1694093396027,0.006,25702.0,25701.0,2.335537]
[1694093398612,0.006,25702.0,25701.0,2.334537]
[1694093399422,0.01,25702.0,25701.0,2.334537]
[1694093400427,0.01,25702.0,25701.0,2.84379022]
[1694093401148,0.01,25702.0,25701.0,2.72309022]
[1694093401380,0.01,25702.0,25698.0,0.04903764]
[1694093401381,1.65973929,25702.0,25698.0,0.04903764]
[1694093401633,1.65973929,25702.0,25699.0,0.38855322]
[1694093401634,2.47544771,25702.0,25699.0,0.38855322]
[1694093401895,2.59658829,25702.0,25699.0,0.38855322]
[1694093402340,2.59258829,25702.0,25699.0,0.38855322]
[1694093402814,2.59258829,25702.0,25698.0,0.04903764]
[1694093402815,2.73675022,25702.0,25698.0,0.04903764]
[1694093403053,2.73675022,25702.0,25698.0,0.43759086]
[1694093403054,0.09344129,25700.0,25698.0,0.43759086]
[1694093403284,0.87166329,25700.0,25698.0,0.43759086]
[1694093403525,1.64988529,25700.0,25698.0,0.43759086]
[1694093403755,1.79004722,25700.0,25698.0,0.43759086]
[1694093403984,0.09344129,25699.0,25698.0,0.38855322]
[1694093404220,0.77824,25699.0,25698.0,0.38855322]
[1694093405388,1.79004722,25700.0,25698.0,0.38855322]
[1694093405389,1.79005422,25700.0,25698.0,0.38855322]
[1694093405651,1.79105422,25700.0,25698.0,0.40155322]
[1694093406352,0.001,25699.0,25698.0,0.40855322]
[1694093406778,0.002,25699.0,25698.0,0.42955322]
[1694093407193,0.78024,25699.0,25698.0,0.42955322]
[1694093407865,0.002,25699.0,25698.0,0.42955322]
[1694093409629,0.001,25699.0,25698.0,0.40955322]
[1694093410185,1.55748,25699.0,25698.0,0.032]
[1694093410405,1.55748,25699.0,25698.0,0.021]
[1694093410768,1.55848,25699.0,25698.0,0.041]
[1694093412333,0.78024,25699.0,25698.0,0.041]
[1694093415815,0.002,25699.0,25698.0,0.041]
[1694093416223,0.002,25699.0,25698.0,2.88506322]
[1694093416692,0.002,25699.0,25698.0,2.10679322]
[1694093417962,0.002,25699.0,25698.0,1.20782322]
[1694093420299,0.002,25699.0,25698.0,0.42955322]
[1694093420515,2.73006131,25699.0,25698.0,0.041]
[1694093420915,2.59758193,25699.0,25698.0,0.041]
[1694093421116,2.64430258,25699.0,25698.0,0.041]
[1694093421520,3.56254258,25699.0,25698.0,0.041]
[1694093421753,3.75655193,25699.0,25698.0,0.041]
[1694093422541,3.75716997,25699.0,25698.0,0.041]
[1694093422772,3.75616997,25699.0,25698.0,0.021]
[1694093422979,4.14578289,25699.0,25698.0,0.021]
[1694093423188,4.42610676,25699.0,25698.0,0.021]
[1694093423391,4.53433611,25699.0,25698.0,0.021]
[1694093423606,4.61119611,25699.0,25698.0,0.021]
[1694093423843,4.60573611,25699.0,25698.0,0.021]
[1694093424063,4.60687611,25699.0,25698.0,0.021]
[1694093424274,4.60669611,25699.0,25698.0,0.021]
[1694093424489,4.61131611,25699.0,25698.0,0.021]
[1694093424708,4.60975611,25699.0,25698.0,0.021]
[1694093424915,4.61011611,25699.0,25698.0,0.021]
[1694093425128,4.61035611,25699.0,25698.0,0.021]
[1694093425309,4.60639611,25699.0,25698.0,0.021]
[1694093425517,4.7804514,25699.0,25698.0,0.021]
[1694093425727,0.04,25696.0,25692.0,0.01989699]
[1694093425942,0.1207,25694.0,25692.0,0.01989699]
[1694093426176,1.556844,25693.0,25692.0,0.01989699]
[1694093426418,3.11430355,25693.0,25692.0,0.01989699]
[1694093427062,3.11430355,25693.0,25692.0,0.04489699]
[1694093427485,0.00061555,25693.0,25692.0,1.33260221]
[1694093427704,0.00061555,25693.0,25692.0,2.08605421]
[1694093428339,0.00261555,25693.0,25692.0,2.13605421]
[1694093428538,0.002,25693.0,25692.0,2.13605421]
[1694093429192,0.002,25693.0,25692.0,0.57915021]
[1694093429390,0.00261547,25693.0,25692.0,0.57915021]
[1694093429809,0.00261547,25693.0,25692.0,0.45845021]
[1694093429810,1.55945947,25693.0,25692.0,0.45845021]
[1694093430013,2.33788147,25693.0,25692.0,0.45845021]
[1694093431317,2.33788147,25693.0,25692.0,0.06989699]
[1694093431754,1.55945947,25693.0,25692.0,0.06989699]
[1694093432578,2.33788147,25693.0,25692.0,0.06989699]
[1694093444237,2.64950922,25693.0,25692.0,0.06989699]
[1694093444452,2.83020922,25693.0,25692.0,0.06989699]
[1694093446012,2.82920922,25693.0,25692.0,0.04489699]
[1694093446232,2.84220922,25693.0,25692.0,0.04689699]
[1694093446680,2.52958147,25693.0,25692.0,0.02189699]
[1694093446899,2.51658147,25693.0,25692.0,0.01989699]
[1694093447321,2.51658147,25693.0,25692.0,0.02389699]
[1694093447322,2.54258147,25693.0,25692.0,0.02389699]
[1694093447751,2.52958147,25693.0,25692.0,0.02189699]
[1694093447977,2.54258147,25693.0,25692.0,0.02389699]
[1694093450820,2.6690352,25693.0,25692.0,0.02389699]
[1694093456916,2.54258147,25693.0,25692.0,0.02389699]
[1694093466617,3.114172,25689.0,25687.0,0.04972669]
[1694093466861,0.1207,25688.0,25687.0,0.04972669]
[1694093467110,2.456419,25688.0,25684.0,0.01989699]
[1694093467398,2.456419,25688.0,25685.0,0.38855322]
[1694093467399,0.03755942,25687.0,25685.0,0.38855322]
[1694093467659,4.01387,25686.0,25684.0,0.01989699]
[1694093467913,0.1207,25685.0,25684.0,0.01989699]
[1694093468186,2.456692,25685.0,25684.0,0.01989699]
[1694093468692,2.84630492,25685.0,25684.0,0.01989699]
[1694093468910,2.84630492,25685.0,25684.0,0.02789699]
[1694093469141,2.456692,25685.0,25684.0,0.02789699]
[1694093469366,2.456692,25685.0,25684.0,0.01989699]
[1694093470232,2.335992,25685.0,25684.0,0.01989699]
[1694093470442,2.335992,25685.0,25684.0,0.40845021]
[1694093470650,0.001,25686.0,25684.0,1.99583821]
[1694093470865,0.001,25686.0,25685.0,0.38855322]
[1694093471100,1.558268,25686.0,25685.0,0.38855322]
[1694093471324,2.65445,25686.0,25684.0,0.04389699]
[1694093471536,2.77515,25686.0,25684.0,0.04389699]
[1694093471750,2.77515,25686.0,25684.0,0.02689699]
[1694093472181,2.458602,25686.0,25685.0,0.008]
[1694093472627,2.457602,25686.0,25685.0,0.008]
[1694093472842,2.456602,25686.0,25684.0,0.01989699]
[1694093473056,1.558328,25685.0,25684.0,0.03489699]
[1694093473272,1.557328,25685.0,25684.0,0.02789699]
[1694093473718,1.557328,25685.0,25684.0,0.03489699]
[1694093474370,1.557328,25685.0,25684.0,0.02789699]
[1694093475239,1.557328,25685.0,25684.0,0.01989699]
[1694093475692,1.559328,25685.0,25684.0,0.03689699]
[1694093475912,1.560328,25685.0,25684.0,0.05189699]
[1694093479764,0.003,25685.0,25684.0,0.44045021]
[1694093481732,0.781664,25685.0,25684.0,0.44045021]
[1694093482153,1.560328,25685.0,25684.0,0.44045021]
[1694093487364,2.338992,25685.0,25684.0,0.44045021]
[1694093487574,2.5728882,25685.0,25684.0,0.05189699]
[1694093490286,2.338992,25685.0,25684.0,0.05189699]
[1694093492787,0.781664,25685.0,25684.0,0.05189699]
[1694093493774,1.560328,25685.0,25684.0,0.05189699]
[1694093500397,2.338992,25685.0,25684.0,0.05189699]
[1694093501045,1.560328,25685.0,25684.0,0.05189699]
[1694093502321,2.338992,25685.0,25684.0,0.05189699]
[1694093503823,3.19390835,25685.0,25684.0,0.05189699]
[1694093504050,2.96082113,25685.0,25684.0,0.05189699]
[1694093504299,3.02199,25685.0,25684.0,0.05189699]
[1694093504539,3.97281853,25685.0,25684.0,0.05189699]
[1694093504775,3.97281853,25685.0,25684.0,0.03489699]
[1694093504776,3.84502986,25685.0,25684.0,0.03489699]
[1694093504987,4.03175808,25685.0,25684.0,0.03489699]
[1694093505200,3.97081255,25685.0,25684.0,0.03489699]
[1694093505412,3.97083527,25685.0,25684.0,0.03489699]
[1694093505619,3.73774805,25685.0,25684.0,0.03489699]
[1694093506055,3.19117127,25685.0,25684.0,0.01989699]
[1694093506476,3.19117127,25685.0,25684.0,0.02289699]
[1694093506477,2.98708405,25685.0,25684.0,0.02289699]
[1694093506698,2.66573818,25685.0,25684.0,0.02289699]
[1694093507118,2.65673818,25685.0,25684.0,0.02189699]
[1694093507545,2.86146551,25685.0,25684.0,0.02389699]
[1694093508010,2.72141933,25685.0,25684.0,0.02389699]
[1694093508463,2.82870244,25685.0,25684.0,0.02389699]
[1694093508688,3.15739214,25685.0,25684.0,0.02389699]
[1694093509107,3.93605614,25685.0,25684.0,0.02389699]
[1694093511014,4.12275064,25685.0,25684.0,0.02389699]
[1694093511232,3.93605614,25685.0,25684.0,0.02389699]
[1694093515132,4.1227391,25685.0,25684.0,0.02389699]
[1694093515340,3.93605614,25685.0,25684.0,0.02389699]
[1694093518354,3.70296892,25685.0,25684.0,0.02389699]
[1694093519911,3.93631772,25685.0,25684.0,0.02389699]
[1694093520344,4.12296892,25685.0,25684.0,0.02389699]
[1694093520554,4.18389453,25685.0,25684.0,0.02389699]
[1694093520772,4.18389453,25685.0,25681.0,0.01989699]
[1694093520773,0.04,25682.0,25681.0,0.01989699]
[1694093520981,4.47444423,25682.0,25681.0,0.01989699]
[1694093522293,4.47544423,25682.0,25681.0,0.02789699]
[1694093522734,4.24212799,25682.0,25681.0,0.02789699]
[1694093523847,4.38206407,25682.0,25681.0,0.02789699]
[1694093524069,4.77267699,25682.0,25681.0,0.03789699]
[1694093524517,4.77067699,25682.0,25681.0,0.01989699]
[1694093524750,4.78867699,25682.0,25681.0,0.02189699]
[1694093524957,4.602024,25682.0,25681.0,0.02189699]
[1694093525399,4.622024,25682.0,25681.0,0.02189699]
[1694093527181,4.67145,25682.0,25681.0,0.02189699]
[1694093528043,4.76468886,25682.0,25681.0,0.02189699]
[1694093528675,4.67145,25682.0,25681.0,0.02189699]
[1694093528901,4.7646853,25682.0,25681.0,0.02189699]
[1694093529451,4.62474922,25682.0,25681.0,0.02189699]
[1694093532115,4.66474922,25682.0,25681.0,0.02189699]
[1694093532389,4.96474922,25682.0,25681.0,0.02189699]
[1694093533781,4.87151392,25682.0,25681.0,0.02189699]
[1694093535364,4.85151392,25682.0,25681.0,0.02189699]
[1694093535566,4.94474922,25682.0,25681.0,0.02189699]
[1694093535775,4.94474922,25682.0,25681.0,0.02089699]
[1694093535776,4.93574922,25682.0,25681.0,0.02089699]
[1694093535990,4.95974922,25682.0,25681.0,0.02289699]
[1694093536223,4.95074922,25682.0,25681.0,0.02189699]
[1694093536439,5.03074922,25682.0,25681.0,0.02189699]
[1694093536665,5.05474922,25682.0,25681.0,0.02289699]
[1694093536874,0.06,25680.0,25679.0,0.04942604]
[1694093537081,4.76439292,25680.0,25679.0,0.04942604]
[1694093537291,0.06,25679.0,25678.0,0.01989699]
[1694093537511,2.517238,25679.0,25678.0,0.01989699]
[1694093539262,2.66623446,25679.0,25678.0,0.01989699]
[1694093539704,2.66723446,25679.0,25678.0,0.02189699]
[1694093539934,3.05684738,25679.0,25678.0,0.02189699]
[1694093540414,2.90785092,25679.0,25678.0,0.02189699]
[1694093540616,3.06691731,25679.0,25678.0,0.02189699]
[1694093541685,2.67730439,25679.0,25678.0,0.02189699]
[1694093544357,2.70030439,25679.0,25678.0,0.02189699]
[1694093544772,2.69930439,25679.0,25678.0,0.01989699]
[1694093545239,2.72330439,25679.0,25678.0,0.02089699]
[1694093545865,2.69930439,25679.0,25678.0,0.01989699]
[1694093546084,2.72330439,25679.0,25678.0,0.02089699]
[1694093546279,3.11291731,25679.0,25678.0,0.02089699]
[1694093548341,2.95385092,25679.0,25678.0,0.02089699]
[1694093549438,3.04704724,25679.0,25678.0,0.02089699]
[1694093549968,2.95385092,25679.0,25678.0,0.02089699]
[1694093555541,2.71278137,25679.0,25678.0,0.001]
[1694093556322,2.564238,25679.0,25678.0,0.001]
[1694093556721,2.71723345,25679.0,25678.0,0.001]
[1694093557136,2.564238,25679.0,25678.0,0.001]
[1694093557553,2.70901642,25679.0,25678.0,0.001]
[1694093558394,2.77550449,25679.0,25678.0,0.001]
[1694093560694,2.86870081,25679.0,25678.0,0.001]
[1694093560905,2.443538,25679.0,25678.0,0.001]
[1694093561354,0.825846,25679.0,25678.0,0.05214094]
[1694093561595,1.604692,25679.0,25678.0,0.05214094]
[1694093562977,1.604692,25679.0,25678.0,0.04714094]
[1694093563832,0.825846,25679.0,25678.0,0.04714094]
[1694093564041,1.604692,25679.0,25678.0,0.43569416]
[1694093564265,0.825846,25679.0,25678.0,0.43569416]
[1694093564490,0.047,25679.0,25678.0,0.43569416]
[1694093564917,0.825846,25679.0,25678.0,0.43569416]
[1694093565355,0.047,25679.0,25678.0,0.43569416]
[1694093565537,0.825846,25679.0,25678.0,0.43569416]
[1694093565738,1.1201579,25679.0,25678.0,0.43569416]
[1694093565970,1.1201579,25679.0,25677.0,0.01989699]
[1694093565971,3.37183947,25679.0,25677.0,0.01989699]
[1694093566190,0.30709264,25678.0,25677.0,0.01989699]
[1694093566422,2.6903188,25678.0,25677.0,0.01989699]
[1694093566632,3.07993172,25678.0,25677.0,0.01989699]
[1694093567281,3.21472762,25678.0,25677.0,0.01989699]
[1694093567495,3.23072762,25678.0,25677.0,0.01989699]
[1694093567915,3.24472762,25678.0,25677.0,0.01989699]
[1694093568141,3.19848192,25678.0,25677.0,0.01989699]
[1694093568366,3.18448192,25678.0,25677.0,0.01989699]
[1694093568595,3.16848192,25678.0,25677.0,0.01989699]
[1694093569012,3.19248192,25678.0,25677.0,0.01989699]
[1694093569649,3.07178192,25678.0,25677.0,0.01989699]
[1694093570058,3.02510017,25678.0,25677.0,0.01989699]
[1694093570265,3.04910017,25678.0,25677.0,0.01989699]
[1694093571126,3.23584527,25678.0,25677.0,0.01989699]
[1694093571340,3.04910017,25678.0,25677.0,0.01989699]
[1694093571544,3.23584527,25678.0,25677.0,0.01989699]
[1694093572002,3.09578192,25678.0,25677.0,0.01989699]
[1694093572816,3.23585644,25678.0,25675.0,0.01989699]
[1694093573046,0.21279355,25677.0,25675.0,0.01989699]
[1694093573263,2.336811,25676.0,25675.0,0.01989699]
[1694093575225,2.350811,25676.0,25675.0,0.01989699]
[1694093575865,2.366811,25676.0,25675.0,0.01989699]
[1694093576085,2.46019639,25676.0,25675.0,0.01989699]
[1694093576298,2.84980931,25676.0,25675.0,0.01989699]
[1694093576928,2.97360087,25676.0,25675.0,0.01989699]
[1694093578431,3.2070351,25676.0,25675.0,0.01989699]
[1694093578855,3.06696058,25676.0,25675.0,0.01989699]
[1694093579070,3.20703257,25676.0,25675.0,0.01989699]
[1694093579308,3.20703273,25676.0,25675.0,0.01989699]
[1694093579751,3.02028763,25676.0,25675.0,0.01989699]
[1694093580178,3.11367105,25676.0,25675.0,0.01989699]
[1694093580389,3.11367114,25676.0,25675.0,0.01989699]
[1694093580630,3.02028763,25676.0,25675.0,0.01989699]
[1694093580845,3.11367111,25676.0,25675.0,0.01989699]
[1694093581056,3.20703273,25676.0,25675.0,0.01989699]
[1694093581275,2.94316902,25676.0,25675.0,0.01989699]
[1694093581494,3.11011472,25676.0,25675.0,0.01989699]
[1694093582572,3.29687578,25676.0,25675.0,0.01989699]
[1694093583249,2.87712392,25676.0,25675.0,0.01989699]
[1694093583475,3.29727102,25676.0,25675.0,0.01989699]
[1694093583689,3.29727049,25676.0,25675.0,0.01989699]
[1694093584551,3.06385493,25676.0,25675.0,0.01989699]
[1694093584781,3.1837448,25676.0,25675.0,0.01989699]
[1694093586912,3.0630448,25676.0,25675.0,0.01989699]
[1694093589467,2.59648557,25676.0,25675.0,0.01989699]
[1694093591458,2.7365031,25676.0,25675.0,0.01989699]
[1694093591695,2.7365132,25676.0,25675.0,0.01989699]
[1694093591947,2.78695757,25676.0,25675.0,0.01989699]
[1694093592199,3.44862771,25676.0,25675.0,0.01989699]
[1694093592447,3.04781024,25676.0,25675.0,0.01989699]
[1694093592680,2.75155177,25676.0,25675.0,0.01989699]
[1694093594542,2.61152267,25676.0,25675.0,0.01989699]
[1694093595247,0.03,25676.0,25675.0,1.96638421]
[1694093595465,0.03,25676.0,25675.0,1.34289192]
[1694093595682,0.03,25676.0,25675.0,0.56392492]